bitfinex/quotes_BTCUSD_20241216
["timestamp","ask_amount","ask_price","bid_price","bid_amount"]
[1734315839826,0.047,104540.0,104530.0,0.3080286]
[1734315840414,0.047,104540.0,104530.0,0.3080196]
[1734315840610,0.1902907,104550.0,104530.0,0.3080196]
[1734315840836,0.047,104540.0,104530.0,0.1549646]
[1734315841238,0.047,104540.0,104530.0,0.31400471]
[1734315842816,0.16031977,104540.0,104530.0,0.00611688]
[1734315843032,0.1902907,104540.0,104530.0,0.00611688]
[1734315843232,0.049,104530.0,104510.0,0.45810151]
[1734315843441,0.0942907,104530.0,104510.0,0.45964029]
[1734315843589,0.0942907,104530.0,104510.0,0.45963929]
[1734315843804,0.0942907,104530.0,104520.0,0.15308]
[1734315844002,0.096,104540.0,104520.0,0.30616]
[1734315844200,0.1902907,104540.0,104520.0,0.30789183]
[1734315844414,0.047,104540.0,104530.0,0.153066]
[1734315845019,0.047,104540.0,104530.0,0.306132]
[1734315845585,0.047,104540.0,104530.0,0.153066]
[1734315847005,0.047,104540.0,104520.0,0.46097683]
[1734315847221,0.047,104520.0,104510.0,0.15463378]
[1734315847427,0.1902907,104520.0,104510.0,0.00452632]
[1734315847637,0.1902907,104520.0,104510.0,0.00353852]
[1734315848122,0.047,104530.0,104510.0,0.15663352]
[1734315848333,0.096,104540.0,104520.0,0.30789183]
[1734315848535,0.1902907,104540.0,104530.0,8.64e-05]
[1734315848753,0.1904635,104540.0,104530.0,0.1531524]
[1734315849161,0.1904635,104540.0,104530.0,8.64e-05]
[1734315849387,0.1414635,104540.0,104530.0,8.64e-05]
[1734315849610,0.1434635,104540.0,104530.0,8.64e-05]
[1734315850478,0.1434635,104540.0,104530.0,0.1531524]
[1734315850685,0.1434635,104540.0,104530.0,8.64e-05]
[1734315851134,0.1434635,104540.0,104530.0,0.1531524]
[1734315851424,0.1434635,104540.0,104530.0,8.64e-05]
[1734315851642,0.2857775,104540.0,104530.0,8.64e-05]
[1734315852054,0.2857775,104540.0,104530.0,0.00307402]
[1734315852055,0.6663775,104540.0,104530.0,0.00307402]
[1734315852470,0.4750635,104540.0,104530.0,0.00307402]
[1734315852700,0.4750635,104540.0,104530.0,8.64e-05]
[1734315853535,0.56923876,104540.0,104530.0,8.64e-05]
[1734315853742,0.76055276,104540.0,104530.0,8.64e-05]
[1734315854179,0.4750635,104540.0,104530.0,8.64e-05]
[1734315854347,0.096,104530.0,104520.0,0.25047942]
[1734315854560,0.1902907,104530.0,104520.0,0.40355942]
[1734315854761,0.1902907,104530.0,104520.0,0.25047942]
[1734315854762,0.047,104530.0,104520.0,0.25047942]
[1734315854962,0.4767728,104540.0,104530.0,0.153066]
[1734315855136,0.5710635,104540.0,104530.0,0.25046542]
[1734315855339,0.5710635,104540.0,104530.0,0.25643994]
[1734315856099,0.0471728,104540.0,104530.0,0.25643994]
[1734315856476,0.0471728,104540.0,104530.0,0.15904052]
[1734315856668,0.1904635,104540.0,104530.0,0.15904052]
[1734315857244,0.047,104530.0,104520.0,0.306141]
[1734315857504,0.047,104530.0,104520.0,0.15904344]
[1734315857932,0.1902907,104530.0,104520.0,0.15904344]
[1734315858269,0.1902907,104530.0,104520.0,0.16203089]
[1734315858499,0.1902907,104530.0,104460.0,0.08481602]
[1734315858500,0.05,104490.0,104460.0,0.08481602]
[1734315858885,0.049,104460.0,104450.0,0.26047631]
[1734315859111,0.096,104470.0,104450.0,0.25057042]
[1734315859315,0.096,104470.0,104450.0,0.40374142]
[1734315859316,0.1412907,104470.0,104450.0,0.40374142]
[1734315859523,0.1412907,104470.0,104460.0,0.25056742]
[1734315859735,0.047,104480.0,104460.0,0.25056742]
[1734315859938,0.047,104480.0,104470.0,0.25055342]
[1734315860142,0.04756122,104480.0,104470.0,0.25055342]
[1734315860347,0.00056122,104480.0,104470.0,0.25055342]
[1734315860552,0.04756122,104480.0,104470.0,0.25055342]
[1734315861140,0.19085192,104480.0,104460.0,0.153159]
[1734315861342,0.19085192,104480.0,104460.0,0.306316]
[1734315861565,0.19085192,104480.0,104460.0,0.306315]
[1734315861766,0.19085192,104480.0,104470.0,0.153154]
[1734315862384,0.240443,104470.0,104450.0,0.1541555]
[1734315862598,0.1432907,104460.0,104450.0,0.0009805]
[1734315863028,0.1432907,104460.0,104450.0,0.153183]
[1734315863232,0.047,104460.0,104450.0,0.153183]
[1734315863446,0.1902907,104460.0,104440.0,0.2506911]
[1734315863656,0.047,104450.0,104440.0,0.306371]
[1734315864067,0.047,104450.0,104440.0,0.153184]
[1734315864308,0.047,104450.0,104440.0,0.306372]
[1734315864510,0.047,104450.0,104440.0,0.4038791]
[1734315864718,0.049,104470.0,104450.0,0.153183]
[1734315864920,0.049,104470.0,104450.0,0.306354]
[1734315864921,0.096,104460.0,104450.0,0.306354]
[1734315865121,0.049,104460.0,104450.0,0.306354]
[1734315865339,0.1432907,104470.0,104460.0,0.153168]
[1734315865540,0.0942907,104470.0,104460.0,0.153168]
[1734315865741,0.08107633,104460.0,104450.0,0.306354]
[1734315866495,0.047,104460.0,104450.0,0.306354]
[1734315866950,0.047,104470.0,104460.0,0.153168]
[1734315867372,0.04756122,104480.0,104460.0,0.153157]
[1734315867570,0.06670245,104480.0,104470.0,0.30822485]
[1734315867876,0.06670245,104480.0,104470.0,0.46137885]
[1734315867877,0.03262612,104480.0,104470.0,0.46137885]
[1734315868300,0.03262612,104480.0,104470.0,0.30822485]
[1734315868702,0.03262612,104480.0,104470.0,0.46136685]
[1734315868937,0.03262612,104480.0,104470.0,0.30821285]
[1734315869152,0.03262612,104480.0,104470.0,0.46135685]
[1734315869302,0.06670245,104480.0,104470.0,0.306286]
[1734315871104,0.06670245,104480.0,104470.0,0.153142]
[1734315871105,0.16099315,104480.0,104470.0,0.153142]
[1734315871310,0.12691682,104480.0,104470.0,0.153142]
[1734315872030,0.03407633,104470.0,104460.0,0.153158]
[1734315872236,0.16099315,104480.0,104460.0,0.306313]
[1734315872640,0.16099315,104480.0,104470.0,0.153154]
[1734315872935,0.16099315,104480.0,104470.0,0.1532404]
[1734315873153,0.19483168,104480.0,104470.0,8.64e-05]
[1734315873388,0.16099315,104480.0,104470.0,8.64e-05]
[1734315873746,0.0942907,104480.0,104470.0,8.64e-05]
[1734315874881,0.12836703,104480.0,104470.0,0.1532404]
[1734315875273,0.0942907,104480.0,104470.0,8.64e-05]
[1734315875477,0.12836703,104480.0,104470.0,0.1532404]
[1734315876498,0.16099315,104480.0,104470.0,0.1532404]
[1734315876697,0.12836703,104480.0,104470.0,0.1532404]
[1734315877504,0.03407633,104480.0,104470.0,0.1532404]
[1734315877710,0.03407633,104490.0,104480.0,0.133996]
[1734315877958,0.12836703,104490.0,104480.0,0.13405246]
[1734315879953,0.18710283,104490.0,104480.0,0.13405246]
[1734315880312,0.12836703,104490.0,104480.0,0.13405246]
[1734315880512,0.12836703,104490.0,104480.0,5.646e-05]
[1734315881405,0.0942907,104490.0,104480.0,5.646e-05]
[1734315881626,0.2856957,104490.0,104480.0,5.646e-05]
[1734315882092,0.7162957,104490.0,104480.0,5.646e-05]
[1734315882294,0.81047096,104490.0,104480.0,5.646e-05]
[1734315883018,0.0942907,104490.0,104480.0,5.646e-05]
[1734315884507,0.2856957,104490.0,104480.0,5.646e-05]
[1734315884829,0.6662957,104490.0,104480.0,5.646e-05]
[1734315885143,0.6664685,104490.0,104480.0,5.646e-05]
[1734315886268,0.3858685,104490.0,104480.0,5.646e-05]
[1734315886472,0.48004376,104490.0,104480.0,5.646e-05]
[1734315886681,0.52624376,104490.0,104480.0,5.646e-05]
[1734315886889,0.60234376,104490.0,104480.0,5.646e-05]
[1734315892016,0.55234376,104490.0,104480.0,5.646e-05]
[1734315892219,0.50234376,104490.0,104480.0,5.646e-05]
[1734315892643,0.3619685,104490.0,104480.0,5.646e-05]
[1734315893274,0.7425685,104490.0,104480.0,5.646e-05]
[1734315894938,0.5511635,104490.0,104480.0,5.646e-05]
[1734315895144,0.7425685,104490.0,104480.0,5.646e-05]
[1734315895762,0.0944635,104490.0,104480.0,0.25074053]
[1734315895965,0.03279892,104490.0,104480.0,0.25074053]
[1734315896167,0.03279892,104490.0,104480.0,0.25082693]
[1734315896168,0.0001728,104490.0,104480.0,0.25082693]
[1734315896294,0.03279892,104490.0,104480.0,0.25077167]
[1734315896699,0.0001728,104490.0,104480.0,0.25077167]
[1734315896900,0.0001728,104490.0,104480.0,0.33237167]
[1734315898158,0.0001728,104490.0,104480.0,0.25077167]
[1734315898418,0.12853983,104490.0,104480.0,0.1532266]
[1734315899059,0.16116595,104490.0,104480.0,0.1532266]
[1734315899675,0.12853983,104490.0,104480.0,0.1532266]
[1734315899886,0.12708962,104490.0,104480.0,0.25077167]
[1734315900095,0.03424913,104490.0,104480.0,0.25069918]
[1734315900714,0.06687525,104490.0,104480.0,0.25069918]
[1734315902180,0.03424913,104490.0,104480.0,0.25069918]
[1734315902382,0.03424913,104490.0,104480.0,0.1532266]
[1734315902785,0.03262612,104480.0,104470.0,0.30812507]
[1734315902988,0.16099315,104480.0,104470.0,0.30868629]
[1734315903191,0.12691682,104480.0,104470.0,0.30868629]
[1734315903393,0.12836703,104480.0,104470.0,0.30868629]
[1734315903590,0.16099315,104480.0,104470.0,0.30868629]
[1734315903936,0.12836703,104480.0,104470.0,0.30868629]
[1734315904117,0.16099315,104480.0,104470.0,0.30868629]
[1734315904275,0.12836703,104480.0,104470.0,0.30868629]
[1734315904480,0.16099315,104480.0,104470.0,0.30868629]
[1734315905664,0.03424913,104490.0,104480.0,0.153139]
[1734315905903,0.06687525,104490.0,104480.0,0.153139]
[1734315906105,0.03424913,104490.0,104480.0,0.153139]
[1734315906804,0.03424913,104490.0,104480.0,0.15911631]
[1734315907375,0.06687525,104490.0,104480.0,0.15911631]
[1734315907575,0.0001728,104490.0,104480.0,0.15911631]
[1734315907952,0.0001728,104490.0,104480.0,0.15937845]
[1734315908152,0.0001728,104490.0,104480.0,0.24483009]
[1734315908356,0.0001728,104490.0,104480.0,0.33920719]
[1734315908567,0.0001728,104490.0,104480.0,0.83419419]
[1734315908766,0.0001728,104490.0,104480.0,0.86749174]
[1734315909090,0.14927525,104540.0,104530.0,0.133932]
[1734315909314,0.16116595,104540.0,104530.0,0.133932]
[1734315909469,0.16116595,104540.0,104530.0,0.13990673]
[1734315909874,0.03424913,104540.0,104530.0,0.13990673]
[1734315910231,0.0001728,104540.0,104530.0,0.2948898]
[1734315910418,0.0001728,104540.0,104530.0,0.29545601]
[1734315910717,0.0001728,104540.0,104530.0,0.28948128]
[1734315910917,0.03279892,104540.0,104530.0,0.29545504]
[1734315911152,0.03279892,104540.0,104530.0,0.29499662]
[1734315911333,0.0001728,104540.0,104530.0,0.29499662]
[1734315912171,0.0001728,104540.0,104530.0,0.37865504]
[1734315912404,0.0001728,104540.0,104530.0,0.22367197]
[1734315912607,0.0001728,104540.0,104530.0,0.23259797]
[1734315912822,0.0001728,104540.0,104530.0,0.22367139]
[1734315913637,0.0001728,104540.0,104530.0,0.22321297]
[1734315914454,0.0001728,104540.0,104530.0,0.24192693]
[1734315914660,0.0001728,104540.0,104530.0,0.22321297]
[1734315914863,0.0001728,104540.0,104530.0,0.24192693]
[1734315915077,0.0001728,104540.0,104530.0,0.22321297]
[1734315916561,0.0001728,104540.0,104530.0,0.2232126]
[1734315917625,0.0001728,104540.0,104530.0,0.22321296]
[1734315918381,0.0001728,104540.0,104530.0,0.47248673]
[1734315918590,0.0001728,104540.0,104530.0,0.50978296]
[1734315919218,0.0001728,104540.0,104530.0,0.5458708]
[1734315919419,0.0001728,104540.0,104530.0,0.59547041]
[1734315920023,0.0001728,104540.0,104530.0,0.36710327]
[1734315920183,0.0001728,104540.0,104530.0,0.52208634]
[1734315920788,0.0001728,104540.0,104530.0,0.51611356]
[1734315921205,0.0001728,104540.0,104530.0,0.46651356]
[1734315922093,0.0001728,104540.0,104530.0,0.46626097]
[1734315923623,0.0001728,104540.0,104530.0,0.48763353]
[1734315924029,0.0001728,104540.0,104530.0,0.43022944]
[1734315924945,0.0001728,104540.0,104530.0,0.34702944]
[1734315925154,0.0001728,104540.0,104530.0,0.23136618]
[1734315926595,0.0001728,104540.0,104530.0,0.3313149]
[1734315926796,0.0001728,104540.0,104530.0,0.3278149]
[1734315927790,0.0001728,104540.0,104530.0,0.22786618]
[1734315927988,0.0001728,104540.0,104530.0,0.32215688]
[1734315931173,0.0001728,104540.0,104530.0,0.36554315]
[1734315931514,0.0001728,104540.0,104530.0,0.45691499]
[1734315931742,0.0001728,104540.0,104530.0,0.42891948]
[1734315931943,0.0001728,104540.0,104530.0,0.32215688]
[1734315932540,0.0001728,104540.0,104530.0,0.34961948]
[1734315932753,0.0001728,104540.0,104530.0,0.49124315]
[1734315932995,0.0001728,104540.0,104530.0,1.86124315]
[1734315933238,0.0001728,104540.0,104530.0,0.49124315]
[1734315933974,8e-07,104540.0,104530.0,5.51218682]
[1734315934183,8e-07,104540.0,104530.0,0.52718435]
[1734315934409,8e-07,104540.0,104530.0,0.50926982]
[1734315935996,8e-07,104540.0,104530.0,0.50921355]
[1734315937019,8e-07,104540.0,104530.0,0.33682155]
[1734315937220,0.000173,104590.0,104570.0,0.306014]
[1734315937441,0.000173,104590.0,104580.0,0.25026212]
[1734315937958,0.000173,104590.0,104580.0,0.77853614]
[1734315938332,0.000173,104590.0,104580.0,0.31432058]
[1734315938533,0.00073501,104590.0,104580.0,0.42453495]
[1734315938904,0.00073501,104590.0,104580.0,0.4429645]
[1734315939101,0.00073501,104590.0,104580.0,0.31432058]
[1734315941780,0.00073501,104590.0,104580.0,0.152992]
[1734315941978,0.00073501,104590.0,104580.0,0.31432058]
[1734315943136,0.00073501,104590.0,104580.0,0.40861128]
[1734315944035,0.00073501,104590.0,104580.0,0.41458187]
[1734315946329,0.00073501,104590.0,104580.0,0.43050554]
[1734315946566,0.00073501,104590.0,104580.0,0.44787942]
[1734315947340,0.00073501,104590.0,104580.0,3.23687942]
[1734315947715,1e-08,104590.0,104580.0,3.29543637]
[1734315947896,1e-08,104590.0,104580.0,0.69211924]
[1734315948105,0.000173,104600.0,104590.0,3.32829755]
[1734315948328,0.060563,104630.0,104600.0,0.02829755]
[1734315948605,0.060563,104630.0,104620.0,0.29514558]
[1734315948757,0.060563,104630.0,104620.0,0.30111617]
[1734315949315,0.18747982,104630.0,104620.0,0.00597059]
[1734315949927,0.18747982,104630.0,104620.0,0.006139]
[1734315950599,0.060563,104630.0,104620.0,0.30128458]
[1734315951833,0.060563,104630.0,104620.0,0.139956]
[1734315952258,0.060563,104630.0,104620.0,0.13398541]
[1734315952465,0.060563,104630.0,104620.0,0.13995385]
[1734315953541,0.39684537,104630.0,104620.0,0.00613685]
[1734315953742,0.20569637,104630.0,104620.0,0.00613685]
[1734315954157,0.18747982,104630.0,104620.0,0.00613685]
[1734315954765,0.18765262,104630.0,104620.0,0.00613685]
[1734315954965,0.18765262,104630.0,104620.0,0.00613802]
[1734315956097,0.18765262,104630.0,104620.0,0.13995502]
[1734315956661,0.3461755,104630.0,104620.0,0.00613802]
[1734315957627,0.1550265,104630.0,104620.0,0.00613802]
[1734315957863,0.1550265,104630.0,104620.0,0.13995502]
[1734315959356,0.1550265,104630.0,104620.0,0.22598312]
[1734315959357,0.22672895,104630.0,104620.0,0.22598312]
[1734315959564,0.1550265,104630.0,104620.0,0.22598312]
[1734315959765,0.09981213,104630.0,104620.0,0.13995502]
[1734315960283,0.1550265,104630.0,104620.0,0.00613802]
[1734315960699,0.18765262,104630.0,104620.0,0.00613802]
[1734315960920,0.1550265,104630.0,104620.0,0.00613802]
[1734315961143,0.1550265,104630.0,104620.0,0.13995502]
[1734315961383,0.1550265,104630.0,104620.0,0.13995486]
[1734315961852,0.18765262,104630.0,104620.0,0.13995486]
[1734315962054,0.1550265,104630.0,104620.0,0.13995486]
[1734315963482,0.8757755,104630.0,104620.0,0.00613786]
[1734315963688,0.267386,104610.0,104600.0,0.0009828]
[1734315963905,0.267386,104610.0,104570.0,0.172075]
[1734315963906,0.03907633,104580.0,104570.0,0.172075]
[1734315964112,0.20956703,104580.0,104570.0,0.0009965]
[1734315964312,0.4107317,104580.0,104570.0,0.0009965]
[1734315964546,0.07170245,104560.0,104540.0,0.53400367]
[1734315964696,0.07170245,104550.0,104540.0,0.28273464]
[1734315965097,0.16599315,104550.0,104540.0,0.01491564]
[1734315965405,0.16599315,104550.0,104540.0,0.01547765]
[1734315966347,0.3341867,104550.0,104540.0,0.01547765]
[1734315967715,0.3341867,104550.0,104540.0,0.00056201]
[1734315968503,0.1428907,104550.0,104540.0,0.00056201]
[1734315968705,0.1428907,104550.0,104540.0,0.13448201]
[1734315970169,0.07170245,104550.0,104540.0,0.29604453]
[1734315970522,0.03907633,104550.0,104540.0,0.29604453]
[1734315970873,0.07170245,104550.0,104540.0,0.29604453]
[1734315973462,0.07170245,104550.0,104540.0,0.26438301]
[1734315975102,0.03907633,104540.0,104530.0,0.1340094]
[1734315975305,0.03907633,104540.0,104530.0,0.13411564]
[1734315977583,0.03907633,104540.0,104530.0,0.14904089]
[1734315979038,0.02415104,104540.0,104530.0,0.28296389]
[1734315980638,0.02415104,104540.0,104530.0,0.2829086]
[1734315984352,0.01915104,104540.0,104530.0,0.2829086]
[1734315986055,0.14606786,104550.0,104530.0,0.2829086]
[1734315986397,0.09535104,104560.0,104550.0,0.133907]
[1734315986624,0.22226786,104560.0,104550.0,0.133907]
[1734315987860,0.47675104,104580.0,104560.0,0.153022]
[1734315988241,0.19044174,104580.0,104570.0,0.08608939]
[1734315988424,0.22306786,104580.0,104570.0,0.23909639]
[1734315988628,0.19044174,104580.0,104570.0,0.23909639]
[1734315988762,0.22306786,104580.0,104570.0,0.23909639]
[1734315988964,0.19044174,104580.0,104570.0,0.23909639]
[1734315989202,0.077,104580.0,104570.0,0.23909639]
[1734315989404,0.12877716,104600.0,104570.0,0.47818078]
[1734315989618,0.00056211,104600.0,104590.0,0.23906739]
[1734315990651,0.03318823,104600.0,104590.0,0.23906739]
[1734315991084,0.1518639,104600.0,104590.0,0.152978]
[1734315991254,0.10085104,104590.0,104580.0,0.305984]
[1734315991410,0.19514174,104590.0,104580.0,0.39207339]
[1734315992729,0.19514174,104590.0,104580.0,0.305984]
[1734315992937,0.19514174,104590.0,104580.0,0.39207339]
[1734315993193,0.01915104,104580.0,104570.0,0.3069998]
[1734315993442,0.12691682,104580.0,104570.0,0.0009978]
[1734315993733,0.11462612,104570.0,104560.0,0.01491942]
[1734315993879,0.20891682,104570.0,104560.0,0.16794142]
[1734315995330,0.22806786,104570.0,104560.0,0.16794142]
[1734315996702,0.14606786,104570.0,104560.0,0.16794142]
[1734316001095,0.14624046,104570.0,104560.0,0.16794142]
[1734316002423,0.0944633,104570.0,104560.0,0.01491942]
[1734316002637,0.2857223,104570.0,104560.0,0.01491942]
[1734316002842,0.36007433,104570.0,104560.0,0.01491942]
[1734316003265,0.2857223,104570.0,104560.0,0.01491942]
[1734316006702,0.3615223,104570.0,104560.0,0.01491942]
[1734316008861,0.4079223,104570.0,104560.0,0.01491942]
[1734316009113,0.4579223,104570.0,104560.0,0.01491942]
[1734316010718,0.5079223,104570.0,104560.0,0.01491942]
[1734316010954,0.59696433,104570.0,104560.0,0.01491942]
[1734316011584,0.49696433,104570.0,104560.0,0.01491942]
[1734316018929,0.420096,104550.0,104540.0,8.63e-05]
[1734316019171,0.4143867,104550.0,104540.0,8.63e-05]
[1734316019427,0.50270136,104550.0,104540.0,8.63e-05]
[1734316020088,0.5143867,104550.0,104540.0,8.63e-05]
[1734316020240,0.4643867,104550.0,104540.0,0.00019254]
[1734316021273,0.4143867,104550.0,104540.0,0.00019254]
[1734316022265,0.1740907,104550.0,104540.0,0.00019254]
[1734316022857,0.3653867,104550.0,104540.0,0.00019254]
[1734316023524,0.3653867,104550.0,104540.0,0.01511812]
[1734316023525,0.41779759,104550.0,104540.0,0.01511812]
[1734316024357,0.05177716,104530.0,104520.0,0.08618292]
[1734316024518,0.01915104,104540.0,104520.0,0.24024562]
[1734316024687,0.11344174,104540.0,104530.0,0.08618292]
[1734316024896,0.11344174,104540.0,104530.0,0.23924892]
[1734316025524,0.14606786,104540.0,104530.0,0.23924892]
[1734316025877,0.11344174,104540.0,104530.0,0.23924892]
[1734316026717,0.11344174,104540.0,104530.0,0.153066]
[1734316026914,0.11344174,104540.0,104520.0,0.25417906]
[1734316026915,0.05177716,104530.0,104520.0,0.25417906]
[1734316027193,0.05177716,104530.0,104520.0,0.16799614]
[1734316027631,0.05177716,104530.0,104520.0,0.25417906]
[1734316029249,0.05177716,104540.0,104530.0,0.133932]
[1734316029635,0.0001685,104550.0,104540.0,0.13392]
[1734316029880,0.0001685,104550.0,104540.0,0.52707654]
[1734316030103,0.0001685,104550.0,104540.0,0.97450159]
[1734316030309,0.0001685,104550.0,104540.0,1.19937652]
[1734316030518,0.0001726,104560.0,104550.0,0.03084896]
[1734316030722,0.0001726,104570.0,104560.0,0.26101684]
[1734316030723,2e-07,104570.0,104560.0,0.26101684]
[1734316030859,2e-07,104570.0,104560.0,0.84043955]
[1734316031069,2e-07,104570.0,104560.0,1.06170173]
[1734316031273,2e-07,104570.0,104560.0,1.23406757]
[1734316032541,2e-07,104570.0,104560.0,1.36219567]
[1734316032785,2e-07,104570.0,104560.0,0.90549331]
[1734316033054,2e-07,104570.0,104560.0,0.69299235]
[1734316033251,2e-07,104570.0,104560.0,1.02648947]
[1734316033460,2e-07,104570.0,104560.0,1.05733843]
[1734316033703,2e-07,104570.0,104560.0,1.08007878]
[1734316034261,2e-07,104570.0,104560.0,1.26854972]
[1734316035268,2e-07,104570.0,104560.0,1.39662523]
[1734316036506,2e-07,104570.0,104560.0,1.26854972]
[1734316037101,2e-07,104570.0,104560.0,1.24058534]
[1734316037301,2e-07,104570.0,104560.0,1.23521887]
[1734316037889,2e-07,104570.0,104560.0,1.37333276]
[1734316038236,2e-07,104570.0,104560.0,1.35225075]
[1734316038567,2e-07,104570.0,104560.0,1.36189848]
[1734316038776,2e-07,104570.0,104560.0,1.37154621]
[1734316039150,2e-07,104570.0,104560.0,1.39262822]
[1734316039361,2e-07,104570.0,104560.0,1.3901059]
[1734316039940,2e-07,104570.0,104560.0,1.47547397]
[1734316040145,2e-07,104570.0,104560.0,1.3901059]
[1734316040517,2e-07,104570.0,104560.0,1.38928276]
[1734316040723,2e-07,104570.0,104560.0,1.33735179]
[1734316040925,2e-07,104570.0,104560.0,1.02961377]
[1734316041127,2e-07,104570.0,104560.0,0.85885591]
[1734316041305,2e-07,104570.0,104560.0,0.84148203]
[1734316041539,2e-07,104570.0,104560.0,0.76258203]
[1734316041742,2e-07,104570.0,104560.0,0.22007692]
[1734316041951,0.01915104,104560.0,104550.0,0.43350809]
[1734316042149,0.05177716,104560.0,104540.0,0.305535]
[1734316042356,0.05177716,104560.0,104550.0,0.133898]
[1734316042565,0.05177716,104550.0,104540.0,0.35425772]
[1734316043389,0.01915104,104550.0,104540.0,0.1341638]
[1734316043775,0.0942907,104550.0,104540.0,0.0002548]
[1734316044110,0.0942907,104550.0,104540.0,0.1341748]
[1734316045069,0.11344174,104550.0,104540.0,0.1341748]
[1734316045210,0.0942907,104550.0,104540.0,0.1341748]
[1734316045411,0.0942907,104550.0,104540.0,0.0002548]
[1734316047179,0.2855867,104550.0,104540.0,0.0002548]
[1734316047329,0.48442177,104550.0,104540.0,0.0002548]
[1734316048593,0.4100867,104550.0,104540.0,0.0002548]
[1734316054999,0.23794174,104550.0,104540.0,0.0002548]
[1734316055200,0.23794174,104550.0,104540.0,0.1341748]
[1734316055656,0.05177716,104550.0,104540.0,0.29572287]
[1734316056564,0.01915104,104550.0,104540.0,0.29572287]
[1734316057043,0.0942907,104550.0,104540.0,0.29572287]
[1734316057752,0.14606786,104550.0,104540.0,0.29572287]
[1734316058151,0.11344174,104550.0,104540.0,0.29572287]
[1734316058658,0.01915104,104550.0,104540.0,0.29572287]
[1734316058873,0.01932364,104550.0,104540.0,0.29572287]
[1734316059693,0.05194976,104550.0,104540.0,0.29572287]
[1734316061302,0.03279872,104550.0,104540.0,0.29572287]
[1734316061503,0.05194976,104550.0,104540.0,0.29572287]
[1734316061705,0.05194976,104550.0,104540.0,0.29566762]
[1734316062063,0.03279872,104550.0,104540.0,0.29566762]
[1734316062496,0.0001726,104550.0,104540.0,0.29566762]
[1734316062696,0.05194976,104550.0,104540.0,0.29566762]
[1734316063124,0.0001726,104550.0,104540.0,0.29566762]
[1734316063299,0.03279872,104550.0,104540.0,0.29566762]
[1734316064132,0.03279872,104550.0,104540.0,0.22024943]
[1734316065482,0.0001726,104550.0,104540.0,0.22024943]
[1734316065809,0.0001726,104550.0,104540.0,0.30637931]
[1734316066050,0.0001726,104550.0,104540.0,0.64547033]
[1734316066217,0.0001726,104550.0,104540.0,1.50633793]
[1734316066425,0.0001726,104550.0,104540.0,1.24871658]
[1734316066633,0.0001726,104550.0,104540.0,1.29293396]
[1734316067659,0.0001726,104550.0,104540.0,1.42097216]
[1734316067982,0.0001726,104550.0,104540.0,1.29293396]
[1734316068767,0.0001726,104550.0,104540.0,1.31178754]
[1734316069840,0.0001726,104550.0,104540.0,1.14827944]
[1734316070157,0.0001726,104550.0,104540.0,0.91312321]
[1734316070308,0.0001726,104550.0,104540.0,0.74240003]
[1734316070486,0.0001726,104550.0,104540.0,0.7426304]
[1734316070689,0.0001726,104550.0,104540.0,0.76148398]
[1734316071102,0.0001726,104550.0,104540.0,0.93221602]
[1734316071538,0.0001726,104550.0,104540.0,0.76148398]
[1734316072333,0.0001726,104550.0,104540.0,1.14348556]
[1734316072531,0.0001726,104550.0,104540.0,0.53573857]
[1734316073697,0.0001726,104550.0,104540.0,1.1448657]
[1734316074595,0.0001726,104550.0,104540.0,1.43918075]
[1734316074815,6e-07,104550.0,104540.0,1.70669525]
[1734316074959,6e-07,104550.0,104540.0,1.25658358]
[1734316075314,6e-07,104550.0,104540.0,1.26255521]
[1734316075547,6e-07,104550.0,104540.0,1.09173738]
[1734316075952,2e-07,104570.0,104550.0,0.08014896]
[1734316076082,2e-07,104570.0,104560.0,0.26582219]
[1734316076283,2e-07,104570.0,104560.0,0.43145082]
[1734316077295,2e-07,104570.0,104560.0,0.43145044]
[1734316078229,2e-07,104570.0,104560.0,0.55955286]
[1734316078455,2e-07,104570.0,104560.0,0.73035609]
[1734316078670,2e-07,104570.0,104560.0,1.06789889]
[1734316079631,2e-07,104570.0,104560.0,1.06655489]
[1734316080700,2e-07,104570.0,104560.0,0.89575166]
[1734316081483,2e-07,104570.0,104560.0,1.06655489]
[1734316082067,2e-07,104570.0,104560.0,0.8397307]
[1734316082603,2e-07,104570.0,104560.0,0.83973065]
[1734316083028,2e-07,104570.0,104560.0,0.74678395]
[1734316083392,2e-07,104570.0,104560.0,0.74746936]
[1734316083885,2e-07,104570.0,104560.0,0.43955026]
[1734316084771,2e-07,104570.0,104560.0,0.74785706]
[1734316085458,2e-07,104570.0,104560.0,2.74785706]
[1734316086564,2e-07,104570.0,104560.0,2.91870121]
[1734316086836,2e-07,104570.0,104560.0,2.74785706]
[1734316087037,2e-07,104570.0,104560.0,2.84214776]
[1734316087816,2e-07,104570.0,104560.0,3.01299191]
[1734316088981,2e-07,104570.0,104560.0,2.44771107]
[1734316089266,2e-07,104570.0,104560.0,2.40570784]
[1734316089637,2e-07,104570.0,104560.0,2.32028577]
[1734316089989,2e-07,104570.0,104560.0,2.40570784]
[1734316090186,2e-07,104570.0,104560.0,2.39968142]
[1734316090638,2e-07,104570.0,104560.0,2.39970976]
[1734316091074,0.11092632,104570.0,104560.0,2.21928918]
[1734316091267,0.11092632,104570.0,104560.0,2.13383877]
[1734316091268,0.27006806,104570.0,104560.0,2.13383877]
[1734316091608,0.27006806,104570.0,104560.0,2.133894]
[1734316091609,0.25091702,104570.0,104560.0,2.133894]
[1734316092689,0.14315124,104570.0,104560.0,2.133894]
[1734316093313,0.14315124,104570.0,104560.0,2.22002388]
[1734316093930,0.17577736,104570.0,104560.0,2.22011018]
[1734316094340,0.14315124,104570.0,104560.0,2.22011018]
[1734316095725,0.13815124,104570.0,104560.0,2.22011018]
[1734316096637,0.13815124,104570.0,104560.0,2.1339803]
[1734316099104,0.13815124,104570.0,104560.0,2.22011018]
[1734316099923,0.13815124,104570.0,104560.0,0.46422112]
[1734316099924,0.5044949,104570.0,104560.0,0.46422112]
[1734316100135,0.244932,104530.0,104520.0,0.02984523]
[1734316100325,0.37535258,104530.0,104520.0,5.2e-07]
[1734316100550,0.37535258,104530.0,104480.0,0.35419828]
[1734316100551,0.03262612,104500.0,104480.0,0.35419828]
[1734316100742,0.14606786,104500.0,104490.0,0.00307474]
[1734316100971,0.05177716,104500.0,104490.0,0.00307474]
[1734316101143,0.0942907,104500.0,104490.0,0.00307474]
[1734316101371,0.2856777,104500.0,104490.0,0.00307474]
[1734316101539,0.28583972,104500.0,104490.0,0.00307474]
[1734316102367,0.05177716,104480.0,104460.0,0.19159818]
[1734316102583,0.05177716,104480.0,104460.0,0.19458675]
[1734316102761,0.05177716,104480.0,104470.0,0.133999]
[1734316102965,0.05177716,104480.0,104470.0,0.30384715]
[1734316103321,0.05177716,104480.0,104470.0,0.38997703]
[1734316104170,0.05177716,104480.0,104470.0,0.38698846]
[1734316104349,0.05177716,104480.0,104470.0,0.38997696]
[1734316105073,0.05177716,104480.0,104470.0,0.35711838]
[1734316105276,0.14606786,104480.0,104470.0,0.0029885]